fUST/lending_fUST_20240802
["ID","MTS","AMOUNT","RATE_DAILY","PERIOD"]
[333898484,1722611438819,-363.14861628,0.00013698,2]
[333898486,1722611438828,-198.81276703,0.00013698,2]
[333898539,1722611441507,-301.18723297,0.00013698,2]
[333898540,1722611441520,-500.0,0.00013698,2]
[333898541,1722611441531,-834.02,0.00013698,2]
[333898542,1722611441541,-500.0,0.00013698,2]
[333898543,1722611441555,-500.0,0.00013698,2]
[333898544,1722611441567,-500.0,0.00013698,2]
[333898545,1722611441578,-500.0,0.00013698,2]
[333898546,1722611441590,-375.89863565,0.00013698,2]
[333898547,1722611441603,-500.0,0.00013698,2]
[333898548,1722611441617,-507.8646031,0.00013698,2]
[333898549,1722611441630,-500.0,0.00013698,2]
[333898550,1722611441643,-500.0,0.00013698,2]
[333898551,1722611441655,-500.0,0.00013698,2]
[333898552,1722611441669,-500.0,0.00013698,2]
[333898553,1722611441681,-213.12902475,0.00013698,2]
[333898554,1722611441694,-500.0,0.00013698,2]
[333898555,1722611441705,-500.0,0.00013698,2]
[333898556,1722611441717,-500.0,0.00013698,2]
[333898557,1722611441728,-500.0,0.00013698,2]
[333898558,1722611441740,-500.0,0.00013698,2]
[333898559,1722611441753,-500.0,0.00013698,2]
[333898560,1722611441772,-500.0,0.00013698,2]
[333898561,1722611441784,-500.0,0.00013698,2]
[333898562,1722611441799,-500.0,0.00013698,2]
[333898563,1722611441811,-500.0,0.00013698,2]
[333898564,1722611441821,-500.0,0.00013698,2]
[333898565,1722611441831,-500.0,0.00013698,2]
[333898566,1722611441841,-500.0,0.00013698,2]
[333898567,1722611441853,-500.0,0.00013698,2]
[333898568,1722611441863,-500.0,0.00013698,2]
[333898569,1722611441875,-500.0,0.00013698,2]
[333898570,1722611441887,-500.0,0.00013698,2]
[333898571,1722611441899,-500.0,0.00013698,2]
[333898572,1722611441912,-500.0,0.00013698,2]
[333898573,1722611441924,-500.0,0.00013698,2]
[333898574,1722611441936,-500.0,0.00013698,2]
[333898575,1722611441949,-500.0,0.00013698,2]
[333898576,1722611441962,-500.0,0.00013698,2]
[333898577,1722611441976,-500.0,0.00013698,2]
[333898578,1722611441990,-500.0,0.00013698,2]
[333898579,1722611442006,-500.0,0.00013698,2]
[333898580,1722611442026,-500.0,0.00013698,2]
[333898581,1722611442037,-500.0,0.00013698,2]
[333898582,1722611442048,-500.0,0.00013698,2]
[333898583,1722611442060,-500.0,0.00013698,2]
[333898584,1722611442073,-500.0,0.00013698,2]
[333898585,1722611442084,-500.0,0.00013698,2]
[333898586,1722611442097,-500.0,0.00013698,2]
[333898587,1722611442111,-1480.21,0.00013698,2]
[333898588,1722611442123,-502.11722382,0.00013698,2]
[333898589,1722611442136,-500.0,0.00013698,2]
[333898590,1722611442148,-500.0,0.00013698,2]
[333898591,1722611442158,-500.0,0.00013698,2]
[333898592,1722611442169,-500.0,0.00013698,2]
[333898593,1722611442181,-1311.91,0.00013698,2]
[333898594,1722611442193,-500.0,0.00013698,2]
[333898595,1722611442204,-500.0,0.00013698,2]
[333898596,1722611442215,-500.0,0.00013698,2]
[333898597,1722611442227,-500.0,0.00013698,2]
[333898598,1722611442237,-500.0,0.00013698,2]
[333898599,1722611442248,-500.0,0.00013698,2]
[333898600,1722611442262,-340.17651757,0.00013698,2]
[333898601,1722611442275,-500.0,0.00013698,2]
[333898602,1722611442291,-500.0,0.00013698,2]
[333898603,1722611442301,-500.0,0.00013698,2]
[333898604,1722611442313,-500.0,0.00013698,2]
[333898605,1722611442325,-286.87128719,0.00013698,2]
[333898606,1722611442336,-500.0,0.00013698,2]
[333898607,1722611442346,-500.0,0.00013698,2]
[333898608,1722611442357,-500.0,0.00013698,2]
[333898609,1722611442368,-500.0,0.00013698,2]
[333898610,1722611442380,-500.0,0.00013698,2]
[333898611,1722611442391,-500.0,0.00013698,2]
[333898612,1722611442402,-805.42,0.00013698,2]
[333898613,1722611442412,-784.9,0.00013698,2]
[333898614,1722611442423,-500.0,0.00013698,2]
[333898615,1722611442433,-783.14,0.00013698,2]
[333898616,1722611442444,-500.0,0.00013698,2]
[333898617,1722611442455,-500.0,0.00013698,2]
[333898618,1722611442466,-500.0,0.00013698,2]
[333898619,1722611442477,-506.37693794,0.00013698,2]
[333898620,1722611442489,-500.0,0.00013698,2]
[333898621,1722611442500,-500.0,0.00013698,2]
[333898622,1722611442517,-500.0,0.00013698,2]
[333898623,1722611442534,-500.0,0.00013698,2]
[333898624,1722611442545,-500.0,0.00013698,2]
[333898625,1722611442557,-500.0,0.00013698,2]
[333898626,1722611442568,-1395.27,0.00013698,2]
[333898627,1722611442579,-2096.62,0.00013698,2]
[333898628,1722611442589,-500.0,0.00013698,2]
[333898629,1722611442602,-500.0,0.00013698,2]
[333898630,1722611442613,-500.0,0.00013698,2]
[333898631,1722611442625,-500.0,0.00013698,2]
[333898632,1722611442636,-500.0,0.00013698,2]
[333898633,1722611442647,-500.0,0.00013698,2]
[333898634,1722611442659,-500.0,0.00013698,2]
[333898635,1722611442670,-500.0,0.00013698,2]
[333898636,1722611442681,-500.0,0.00013698,2]
[333898637,1722611442692,-500.0,0.00013698,2]
[333898638,1722611442703,-500.0,0.00013698,2]
[333898639,1722611442714,-500.0,0.00013698,2]
[333898640,1722611442725,-500.0,0.00013698,2]
[333898641,1722611442736,-500.0,0.00013698,2]
[333898642,1722611442747,-500.0,0.00013698,2]
[333898643,1722611442761,-500.0,0.00013698,2]
[333898644,1722611442772,-500.0,0.00013698,2]
[333898645,1722611442789,-500.0,0.00013698,2]
[333898646,1722611442801,-500.0,0.00013698,2]
[333898647,1722611442811,-500.0,0.00013698,2]
[333898648,1722611442822,-500.0,0.00013698,2]
[333898649,1722611442833,-500.0,0.00013698,2]
[333898659,1722611442989,-272.18257329,0.00013698,2]
[333898660,1722611443004,-500.0,0.00013698,2]
[333898663,1722611443020,-500.0,0.00013698,2]
[333898666,1722611443036,-500.0,0.00013698,2]
[333898669,1722611443045,-500.0,0.00013698,2]
[333898673,1722611443055,-500.0,0.00013698,2]
[333898677,1722611443064,-500.0,0.00013698,2]
[333898681,1722611443074,-692.56,0.00013698,2]
[333898684,1722611443084,-500.0,0.00013698,2]
[333898686,1722611443094,-500.0,0.00013698,2]
[333898687,1722611443103,-2361.31,0.00013698,2]
[333898688,1722611443112,-500.0,0.00013698,2]
[333898689,1722611443122,-500.0,0.00013698,2]
[333898690,1722611443133,-500.0,0.00013698,2]
[333898691,1722611443142,-500.0,0.00013698,2]
[333898692,1722611443152,-500.0,0.00013698,2]
[333898693,1722611443161,-500.0,0.00013698,2]
[333898694,1722611443171,-644.86,0.00013698,2]
[333898695,1722611443180,-500.0,0.00013698,2]
[333898696,1722611443190,-500.0,0.00013698,2]
[333898697,1722611443199,-500.0,0.00013698,2]
[333898698,1722611443208,-368.10663037,0.00013698,2]
[333898699,1722611443222,-3065.02336963,0.00013698,2]
[333898700,1722611443232,-500.0,0.00013698,2]
[333898701,1722611443242,-500.0,0.00013698,2]
[333898702,1722611443253,-500.0,0.00013698,2]
[333898703,1722611443269,-255.274468,0.00013699,2]
[333898704,1722611443279,-3000.0,0.00013699,2]
[333898705,1722611443294,-153.0,0.000137,2]
[333898706,1722611443305,-306.8795636,0.000137,2]
[333898707,1722611443315,-2787.90839277,0.00013784,2]
[333898708,1722611443325,-2787.90839274,0.00013806,2]
[333898709,1722611443335,-2787.90839274,0.00013828,2]
[333898710,1722611443345,-2000.0,0.00013837,2]
[333898711,1722611443354,-2787.90839274,0.00013849,2]
[333898712,1722611443365,-2787.90839274,0.00013871,2]
[333898713,1722611443375,-2239.14833898,0.00013871,2]
[333898714,1722611443385,-37713.9514587,0.00013879,2]
[333898715,1722611443394,-500.0,0.00013884,2]
[333898716,1722611443405,-48334.16904315,0.000139,2]
[333898717,1722611443418,-1577.27522613,0.000139,2]
[333898718,1722611443946,-6320.0,0.000139,2]
[333898719,1722611443959,-6325.0,0.000139,2]
[333898720,1722611443971,-916.0,0.000139,2]
[333898721,1722611443984,-546.50479376,0.000139,2]
[333898722,1722611443999,-37670.81014502,0.000139,2]
[333898723,1722611444013,-1093.6,0.000139,2]
[333898724,1722611444023,-5000.0,0.000139,2]
[333898725,1722611444038,-7756.9246341,0.00013905,2]
[333898726,1722611444047,-45.70137269,0.00013906,2]
[333898727,1722611444143,-454.29862731,0.00013906,2]
[333898730,1722611444153,-500.0,0.00013915,2]
[333898733,1722611444163,-500.0,0.00013916,2]
[333898734,1722611444173,-37713.9514587,0.00013926,2]
[333898735,1722611444183,-160.73922024,0.00013926,2]
[333898736,1722611444192,-409.99858854,0.00013926,2]
[333898737,1722611444202,-421.52259324,0.00013926,2]
[333898738,1722611444212,-500.0,0.00013926,2]
[333898739,1722611444221,-500.0,0.00013926,2]
[333898740,1722611444231,-500.0,0.00013926,2]
[333898741,1722611444241,-500.0,0.00013926,2]
[333898742,1722611444251,-608.55,0.00013926,2]
[333898743,1722611444264,-500.0,0.00013926,2]
[333898744,1722611444274,-500.0,0.00013926,2]
[333898745,1722611444289,-500.0,0.00013926,2]
[333898746,1722611444299,-2793.25,0.00013926,2]
[333898747,1722611444308,-2793.25,0.00013926,2]
[333898748,1722611444317,-2793.25,0.00013926,2]
[333898749,1722611444327,-113141.854376,0.00013927,2]
[333898750,1722611444336,-151.0,0.00013927,2]
[333898751,1722611444347,-151.0,0.00013927,2]
[333898752,1722611444356,-151.0,0.00013927,2]
[333898753,1722611444366,-151.0,0.00013927,2]
[333898754,1722611444375,-151.0,0.00013927,2]
[333898755,1722611444385,-151.0,0.00013927,2]
[333898756,1722611444395,-152.741646,0.00013927,2]
[333898757,1722611444405,-151.0,0.00013927,2]
[333898758,1722611444415,-151.0,0.00013927,2]
[333898759,1722611444424,-150.0,0.00013934,2]
[333898760,1722611444433,-506.0,0.00013934,2]
[333898761,1722611444443,-1410.0,0.00013934,2]
[333898762,1722611444453,-2793.25,0.00013936,2]
[333898763,1722611444464,-2793.25,0.00013936,2]
[333898764,1722611444473,-2793.25,0.00013936,2]
[333898765,1722611444484,-2793.25,0.00013936,2]
[333898766,1722611444494,-362.04266451,0.00013936,2]
[333898767,1722611444503,-500.0,0.00013936,2]
[333898768,1722611444520,-500.0,0.00013936,2]
[333898769,1722611444536,-213.10490754,0.00013936,2]
[333898770,1722611444546,-390.89572845,0.00013936,2]
[333898771,1722611444556,-500.0,0.00013936,2]
[333898772,1722611444565,-500.0,0.00013936,2]
[333898773,1722611444575,-500.0,0.00013936,2]
[333898774,1722611444584,-500.0,0.00013936,2]
[333898775,1722611444594,-500.0,0.00013936,2]
[333898776,1722611444604,-500.0,0.00013936,2]
[333898777,1722611444614,-500.0,0.00013936,2]
[333898778,1722611444624,-500.0,0.00013936,2]
[333898779,1722611444633,-500.0,0.00013936,2]
[333898780,1722611444643,-500.0,0.00013936,2]
[333898781,1722611444653,-500.0,0.00013936,2]
[333898782,1722611444663,-500.0,0.00013936,2]
[333898783,1722611444673,-500.0,0.00013936,2]
[333898784,1722611444682,-500.0,0.00013936,2]
[333898785,1722611444692,-500.0,0.00013936,2]
[333898786,1722611444702,-500.0,0.00013936,2]
[333898788,1722611444712,-500.0,0.00013936,2]
[333898790,1722611444722,-500.0,0.00013936,2]
[333898792,1722611444731,-500.0,0.00013936,2]
[333898793,1722611444740,-500.0,0.00013936,2]
[333898795,1722611444750,-500.0,0.00013936,2]
[333898797,1722611444764,-500.0,0.00013936,2]
[333898799,1722611444777,-566.44355537,0.00013936,2]
[333898800,1722611444787,-26775.13764759,0.00013937,5]
[333898802,1722611444797,-133825.3689156,0.00013937,2]
[333898804,1722611444807,-12109.02872822,0.00013937,2]
[333898805,1722611444816,-151.0,0.00013937,2]
[333898807,1722611444826,-151.0,0.00013937,2]
[333898809,1722611444836,-151.0,0.00013937,2]
[333898811,1722611444845,-151.0,0.00013937,2]
[333898813,1722611444855,-151.0,0.00013937,2]
[333898814,1722611444865,-151.0,0.00013937,2]
[333898815,1722611444875,-231.651917,0.00013937,2]
[333898816,1722611444884,-153.1107178,0.00013939,2]
[333898817,1722611444894,-151.0,0.00013961,2]
[333898818,1722611444904,-214.00936041,0.00013961,2]
[333898819,1722611444913,-151.0,0.00013961,2]
[333898820,1722611444924,-2793.25,0.00013961,2]
[333898821,1722611444934,-151.0,0.00013962,2]
[333898823,1722611444945,-71743.53698636,0.00013962,2]
[333898956,1722611447614,-151.0,0.00013879,2]
[333898957,1722611447624,-151.0,0.00013926,2]
[333898958,1722611447633,-151.0,0.00013927,2]
[333898960,1722611447643,-66.94465513,0.00013937,2]
[333898962,1722611447655,-84.05534487,0.00013937,2]
[333898964,1722611447665,-151.0,0.00013937,2]
[333898966,1722611447674,-151.0,0.00013962,2]
[333898968,1722611447684,-301.64465513,0.00013962,2]
[333898970,1722611447696,-915.0,0.00013962,2]
[333898972,1722611447708,-2467.72127601,0.00013962,2]
[333898973,1722611447717,-151.0,0.00013971,2]
[333898974,1722611447726,-2793.25,0.00013971,2]
[333898975,1722611447736,-500.0,0.00013972,2]
[333898976,1722611447746,-500.0,0.00013972,2]
[333898977,1722611447755,-500.0,0.00013972,2]
[333898978,1722611447771,-500.0,0.00013972,2]
[333898979,1722611447786,-500.0,0.00013972,2]
[333898980,1722611447796,-500.0,0.00013972,2]
[333898981,1722611447805,-500.0,0.00013972,2]
[333898982,1722611447815,-118.02872406,0.00013972,2]
[333898983,1722611447839,-500.0,0.00013698,2]
[333898984,1722611447848,-381.97127594,0.00013972,2]
[333898985,1722611447858,-500.0,0.00013972,2]
[333898987,1722611447868,-834.02,0.00013972,2]
[333898989,1722611447877,-500.0,0.00013972,2]
[333898991,1722611447886,-500.0,0.00013972,2]
[333898992,1722611447895,-500.0,0.00013972,2]
[333898994,1722611447904,-500.0,0.00013972,2]
[333898997,1722611447914,-500.0,0.00013972,2]
[333898999,1722611447924,-500.0,0.00013972,2]
[333899001,1722611447933,-500.0,0.00013972,2]
[333899003,1722611447942,-500.0,0.00013972,2]
[333899004,1722611447951,-500.0,0.00013972,2]
[333899006,1722611447961,-500.0,0.00013972,2]
[333899009,1722611447970,-500.0,0.00013972,2]
[333899011,1722611447979,-500.0,0.00013972,2]
[333899013,1722611447993,-500.0,0.00013972,2]
[333899014,1722611448002,-500.0,0.00013972,2]
[333899016,1722611448011,-500.0,0.00013972,2]
[333899018,1722611448025,-500.0,0.00013972,2]
[333899020,1722611448040,-500.0,0.00013972,2]
[333899022,1722611448049,-151.0,0.00013972,2]
[333899024,1722611448059,-500.0,0.00013972,2]
[333899026,1722611448070,-426.23372498,0.00013972,2]
[333899028,1722611448079,-500.0,0.00013972,2]
[333899029,1722611448089,-306.77499908,0.00013972,2]
[333899030,1722611448101,-193.22500092,0.00013972,2]
[333899031,1722611448109,-500.0,0.00013972,2]
[333899032,1722611448118,-374.54630089,0.00013972,2]
[333899033,1722611448128,-500.0,0.00013972,2]
[333899034,1722611448138,-1480.21,0.00013972,2]
[333899035,1722611448149,-500.0,0.00013972,2]
[333899036,1722611448159,-500.0,0.00013972,2]
[333899037,1722611448169,-151.0,0.00013972,2]
[333899038,1722611448179,-500.0,0.00013972,2]
[333899039,1722611448188,-1311.91,0.00013972,2]
[333899040,1722611448198,-500.0,0.00013972,2]
[333899041,1722611448208,-500.0,0.00013972,2]
[333899042,1722611448218,-500.0,0.00013972,2]
[333899043,1722611448228,-500.0,0.00013972,2]
[333899044,1722611448237,-500.0,0.00013972,2]
[333899045,1722611448247,-500.0,0.00013972,2]
[333899046,1722611448256,-500.0,0.00013972,2]
[333899047,1722611448271,-500.0,0.00013972,2]
[333899048,1722611448286,-500.0,0.00013972,2]
[333899049,1722611448295,-500.0,0.00013972,2]
[333899050,1722611448304,-500.0,0.00013972,2]
[333899051,1722611448314,-500.0,0.00013972,2]
[333899052,1722611448323,-89.10869817,0.00013972,2]
[333899053,1722611448335,-410.89130183,0.00013972,2]
[333899054,1722611448345,-500.0,0.00013972,2]
[333899055,1722611448354,-805.42,0.00013972,2]
[333899056,1722611448364,-784.9,0.00013972,2]
[333899057,1722611448374,-500.0,0.00013972,2]
[333899058,1722611448384,-764.41727981,0.00013972,2]
[333899174,1722612634555,-300.0,0.0001155,2]
[333899175,1722612634565,-300.0,0.0001155,2]
[333899177,1722612634575,-6837.61461324,0.00011551,2]
[333899178,1722612634587,-2509.999993,0.00011551,2]
[333899219,1722612639961,-15552.38539376,0.00011551,2]
[333899220,1722612639971,-419.5729724,0.00011895,2]
[333899221,1722612639997,-3014.0342957,0.00011942,2]
[333899222,1722612640007,-250.0,0.00011943,2]
[333899223,1722612640017,-250.0,0.00011976,2]
[333899224,1722612640027,-250.0,0.00012009,2]
[333899225,1722612640038,-250.0,0.00012042,2]
[333899226,1722612640048,-250.0,0.00012074,2]
[333899227,1722612640057,-250.0,0.00012107,2]
[333899228,1722612640067,-86.16752045,0.0001214,2]
[333899229,1722612640080,-163.83247955,0.0001214,2]
[333899230,1722612640090,-212.86752045,0.00012173,2]
[333899231,1722612640101,-37.13247955,0.00012173,2]
[333899232,1722612640112,-250.0,0.00012205,2]
[333899233,1722612640121,-250.0,0.00012238,2]
[333899234,1722612640131,-250.0,0.00012271,2]
[333899235,1722612640141,-250.0,0.00012304,2]
[333899236,1722612640151,-250.0,0.00012336,2]
[333899237,1722612640161,-250.0,0.00012369,2]
[333899238,1722612640171,-250.0,0.00012402,2]
[333899239,1722612640181,-250.0,0.00012435,2]
[333899240,1722612640191,-250.0,0.00012467,2]
[333899241,1722612640201,-3725.76065408,0.000125,2]
[333899242,1722612640211,-250.0,0.000125,2]
[333899243,1722612640221,-250.0,0.00012533,2]
[333899244,1722612640231,-250.0,0.00012566,2]
[333899245,1722612640241,-420.0,0.00012705,2]
[333899246,1722612640251,-2264.70018812,0.000129,2]
[333899247,1722612640262,-455.01,0.00012972,2]
[333899248,1722612640272,-176.752279,0.00012986,2]
[333899251,1722612640282,-1637.94323723,0.00013597,2]
[333899254,1722612640292,-890.19091223,0.000136,2]
[333899284,1722612640859,-27529.02641921,0.000136,2]
[333899285,1722612640869,-1637.94323721,0.00013664,2]
[333899286,1722612640878,-25897.56792407,0.00013686,2]
[333899287,1722612640887,-5000.0,0.00013688,2]
[333899288,1722612640897,-79876.8218288,0.00013688,2]
[333899289,1722612640906,-3801.77,0.00013697,2]
[333899290,1722612640916,-500.0,0.00013698,2]
[333899291,1722612640926,-500.0,0.00013698,2]
[333899292,1722612640935,-500.0,0.00013698,2]
[333899293,1722612640945,-509.09073126,0.00013698,2]
[333899294,1722612640955,-500.0,0.00013698,2]
[333899295,1722612640964,-500.0,0.00013698,2]
[333899297,1722612640973,-500.0,0.00013698,2]
[333899299,1722612640982,-500.0,0.00013698,2]
[333899301,1722612641009,-500.0,0.00013698,2]
[333899303,1722612641018,-500.0,0.00013698,2]
[333899305,1722612641027,-500.0,0.00013698,2]
[333899307,1722612641036,-500.0,0.00013698,2]
[333899308,1722612641046,-502.12221661,0.00013698,2]
[333899309,1722612641055,-500.0,0.00013698,2]
[333899311,1722612641065,-502.06925966,0.00013698,2]
[333899313,1722612641075,-500.0,0.00013698,2]
[333899315,1722612641085,-634.42398649,0.00013698,2]
[333899316,1722612641094,-502.40693595,0.00013698,2]
[333899318,1722612641104,-500.0,0.00013698,2]
[333899320,1722612641113,-522.5118749,0.00013698,2]
[333899321,1722612641123,-552.33633417,0.00013698,2]
[333899322,1722612641132,-500.0,0.00013698,2]
[333899323,1722612641141,-500.0,0.00013698,2]
[333899324,1722612641150,-505.63386954,0.00013698,2]
[333899325,1722612641160,-500.0,0.00013698,2]
[333899326,1722612641170,-343.47273708,0.00013698,2]
[333899327,1722612641179,-500.0,0.00013698,2]
[333899328,1722612641188,-500.0,0.00013698,2]
[333899329,1722612641198,-500.0,0.00013698,2]
[333899330,1722612641208,-589.27225083,0.00013698,2]
[333899331,1722612641218,-500.0,0.00013698,2]
[333899332,1722612641228,-500.0,0.00013698,2]
[333899333,1722612641238,-500.98111871,0.00013698,2]
[333899334,1722612641247,-501.24379968,0.00013698,2]
[333899335,1722612641259,-542.32195044,0.00013698,2]
[333899336,1722612641269,-500.0,0.00013698,2]
[333899337,1722612641278,-500.0,0.00013698,2]
[333899338,1722612641287,-500.0,0.00013698,2]
[333899339,1722612641296,-500.0,0.00013698,2]
[333899340,1722612641306,-505.94128905,0.00013698,2]
[333899341,1722612641315,-500.0,0.00013698,2]
[333899342,1722612641325,-500.0,0.00013698,2]
[333899343,1722612641335,-500.0,0.00013698,2]
[333899344,1722612641345,-500.0,0.00013698,2]
[333899345,1722612641355,-500.0,0.00013698,2]
[333899346,1722612641364,-500.0,0.00013698,2]
[333899347,1722612641374,-500.6897106,0.00013698,2]
[333899348,1722612641383,-500.00000002,0.00013698,2]
[333899349,1722612641394,-504.19979343,0.00013698,2]
[333899350,1722612641403,-501.26094702,0.00013698,2]
[333899351,1722612641412,-500.0,0.00013698,2]
[333899352,1722612641422,-500.0,0.00013698,2]
[333899353,1722612641431,-501.80301251,0.00013698,2]
[333899354,1722612641440,-500.0,0.00013698,2]
[333899355,1722612641449,-500.0,0.00013698,2]
[333899356,1722612641459,-500.0,0.00013698,2]
[333899357,1722612641468,-500.0,0.00013698,2]
[333899358,1722612641478,-500.0,0.00013698,2]
[333899359,1722612641487,-303.47362636,0.00013698,2]
[333899360,1722612641496,-500.0,0.00013698,2]
[333899361,1722612641505,-500.0,0.00013698,2]
[333899362,1722612641514,-500.0,0.00013698,2]
[333899363,1722612641523,-500.0,0.00013698,2]
[333899364,1722612641533,-501.15327667,0.00013698,2]
[333899365,1722612641542,-500.0,0.00013698,2]
[333899366,1722612641551,-500.0,0.00013698,2]
[333899367,1722612641561,-500.0,0.00013698,2]
[333899368,1722612641571,-500.0,0.00013698,2]
[333899369,1722612641581,-219.26218121,0.00013698,2]
[333899370,1722612641590,-500.0,0.00013698,2]
[333899371,1722612641599,-500.0,0.00013698,2]
[333899372,1722612641608,-500.0,0.00013698,2]
[333899373,1722612641618,-500.0,0.00013698,2]
[333899374,1722612641628,-529.81,0.00013698,2]
[333899375,1722612641637,-534.1570803,0.00013698,2]
[333899376,1722612641647,-268.55025728,0.00013698,2]
[333899377,1722612641656,-500.0,0.00013698,2]
[333899378,1722612641666,-500.0,0.00013698,2]
[333899379,1722612641676,-500.0,0.00013698,2]
[333899380,1722612641686,-500.0,0.00013698,2]
[333899381,1722612641696,-500.0,0.00013698,2]
[333899382,1722612641706,-500.0,0.00013698,2]
[333899383,1722612641716,-500.0,0.00013698,2]
[333899384,1722612641727,-500.0,0.00013698,2]
[333899385,1722612641736,-597.72529334,0.00013698,2]
[333899386,1722612641746,-506.37693794,0.00013698,2]
[333899387,1722612641756,-500.0,0.00013698,2]
[333899388,1722612641766,-500.0,0.00013698,2]
[333899389,1722612641775,-500.0,0.00013698,2]
[333899390,1722612641784,-500.0,0.00013698,2]
[333899391,1722612641796,-500.0,0.00013698,2]
[333899392,1722612641807,-500.0,0.00013698,2]
[333899393,1722612641818,-500.0,0.00013698,2]
[333899394,1722612641828,-500.0,0.00013698,2]
[333899395,1722612641838,-500.0,0.00013698,2]
[333899396,1722612641851,-503.02090261,0.00013698,2]
[333899397,1722612641864,-464.90049769,0.00013698,2]
[333899398,1722612641877,-500.0,0.00013698,2]
[333899399,1722612641891,-500.0,0.00013698,2]
[333899400,1722612641904,-508.66921285,0.00013698,2]
[333899401,1722612641915,-531.2,0.00013698,2]
[333899402,1722612641926,-500.0,0.00013698,2]
[333899403,1722612641937,-500.0,0.00013698,2]
[333899404,1722612641949,-500.0,0.00013698,2]
[333899405,1722612641961,-500.0,0.00013698,2]
[333899406,1722612641972,-500.0,0.00013698,2]
[333899407,1722612641984,-500.0,0.00013698,2]
[333899408,1722612641996,-500.0,0.00013698,2]
[333899409,1722612642009,-500.0,0.00013698,2]
[333899410,1722612642021,-500.0,0.00013698,2]
[333899411,1722612642033,-375.89863565,0.00013698,2]
[333899412,1722612642046,-286.87128719,0.00013698,2]
[333899413,1722612642059,-500.0,0.00013698,2]
[333899414,1722612642071,-500.0,0.00013698,2]
[333899415,1722612642083,-500.0,0.00013698,2]
[333899416,1722612642095,-500.0,0.00013698,2]
[333899417,1722612642107,-500.0,0.00013698,2]
[333899418,1722612642120,-501.03909665,0.00013698,2]
[333899419,1722612642132,-500.0,0.00013698,2]
[333899420,1722612642144,-500.0,0.00013698,2]
[333899421,1722612642156,-389.54919772,0.00013698,2]
[333899422,1722612642167,-500.0,0.00013698,2]
[333899423,1722612642178,-500.0,0.00013698,2]
[333899424,1722612642190,-882.6,0.00013698,2]
[333899425,1722612642200,-500.0,0.00013698,2]
[333899426,1722612642210,-500.0,0.00013698,2]
[333899427,1722612642220,-500.0,0.00013698,2]
[333899428,1722612642230,-500.0,0.00013698,2]
[333899429,1722612642242,-500.0,0.00013698,2]
[333899430,1722612642252,-500.0,0.00013698,2]
[333899431,1722612642263,-500.0,0.00013698,2]
[333899432,1722612642274,-500.0,0.00013698,2]
[333899433,1722612642286,-500.0,0.00013698,2]
[333899434,1722612642298,-596.89,0.00013698,2]
[333899435,1722612642309,-500.0,0.00013698,2]
[333899436,1722612642320,-500.0,0.00013698,2]
[333899437,1722612642332,-500.0,0.00013698,2]
[333899438,1722612642343,-500.0,0.00013698,2]
[333899439,1722612642355,-500.0,0.00013698,2]
[333899440,1722612642367,-502.78378867,0.00013698,2]